[Event "GER-ch Youth U12 2020"]
[Site "Willingen"]
[Date "2020.10.27"]
[Round "1.11"]
[White "Aravindan, Midhulan"]
[Black "Chinguun Sundui"]
[Result "0-1"]
[ECO "B15"]
[WhiteElo "1565"]
[BlackElo "1746"]
[Annotator "NA"]
[PlyCount "138"]
[EventDate "2020.10.27"]
[EventType "swiss"]
[EventRounds "7"]
[EventCountry "GER"]
[SourceTitle "playchess.com"]
[Source "ChessBase"]
[SourceQuality "1"]
[TimeControl "40/5400+30:1800+30"]

1. e4 {[%emt 0:00:00]} c6 {[%emt 0:00:00]} 2. d4 {[%emt 0:00:00]} d5 {[%emt 0:00:00]} 3. Nd2 {[%emt 0:00:00]} dxe4 {[%emt 0:00:09]} 4. Nxe4 {[%emt 0:00:05]} Nf6 {[%emt 0:00:07]} 5. Nxf6+ {[%emt 0:00:17]} exf6 {[%emt 0:00:12]} 6. c3 {[%emt 0:00:28]} Bd6 {[%emt 0:00:28]} 7. Bd3 {[%emt 0:00:47]} Qc7 {[%emt 0:01:02]} 8. Nf3 {[%emt 0:02:22]} O-O {[%emt 0:00:41]} 9. O-O {[%emt 0:02:04]} Bg4 {[%emt 0:00:47]} 10. h3 {[%emt 0:00:48]} Bh5 {[%emt 0:00:47]} 11. Be3 {[%emt 0:03:23]} Nd7 {[%emt 0:02:59]} 12. Be2 {[%emt 0:06:39]} Rfe8 {[%emt 0:03:16]} 13. Re1 {[%emt 0:02:39]} Nf8 {[%emt 0:04:59]} 14. Nd2 {[%emt 0:06:23]} Bxe2 {[%emt 0:05:33]} 15. Rxe2 {[%emt 0:01:41]} Ng6 {[%emt 0:08:23]} 16. Nc4 {[%emt 0:08:23]} Rad8 {[%emt 0:03:42]} 17. Qd3 {[%emt 0:08:26]} b5 {[%emt 0:05:55]} 18. Nxd6 {[%emt 0:04:11]} Qxd6 {[%emt 0:00:21]} 19. Rae1 {[%emt 0:02:16]} Ne5 {[%emt 0:08:54]} 20. Qf5 {[%emt 0:07:17]} Ng6 {[%emt 0:17:23]} 21. Kf1 {[%emt 0:10:03]} Re6 {[%emt 0:07:49]} 22. f3 {[%emt 0:09:54]} Rde8 {[%emt 0:01:49]} 23. Qg4 {[%emt 0:03:01]} a5 {[%emt 0:06:18]} 24. Kf2 {[%emt 0:01:57]} Kf8 {[%emt 0:01:52]} 25. g3 {[%emt 0:02:55]} Qd5 {[%emt 0:01:36]} 26. f4 {[%emt 0:04:07]} f5 {[%emt 0:02:42]} 27. Qh5 {[%emt 0:01:03]} h6 {[%emt 0:01:28]} 28. g4 {[%emt 0:01:55]} fxg4 {[%emt 0:04:05]} 29. Qxd5 {[%emt 0:00:40]} cxd5 {[%emt 0:00:12]} 30. hxg4 {[%emt 0:00:04]} Re4 {[%emt 0:01:05]} 31. Kf3 {[%emt 0:01:21]} f5 {[%emt 0:02:47]} 32. g5 {[%emt 0:02:51]} hxg5 {[%emt 0:00:47]} 33. fxg5 {[%emt 0:00:14]} Kf7 {[%emt 0:01:29]} 34. Bd2 {[%emt 0:01:36]} Nh4+ {[%emt 0:00:13]} 35. Kf2 {[%emt 0:00:09]} Ke6 {[%emt 0:02:45]} 36. Bf4 {[%emt 0:02:06]} Ng6 {[%emt 0:00:24]} 37. Bc7 {[%emt 0:01:38]} a4 {[%emt 0:00:17]} 38. Bg3 {[%emt 0:02:22]} Kd7 {[%emt 0:00:19]} 39. Kf3 {[%emt 0:01:21]} Rxe2 {[%emt 0:03:52]} 40. Rxe2 {[%emt 0:00:10]} Rxe2 {[%emt 0:00:01]} 41. Kxe2 {[%emt 0:30:03]} f4 {[%emt 0:30:07]} 42. Be1 {[%emt 0:01:04]} Ke6 {[%emt 0:00:20]} 43. b3 {[%emt 0:00:00]} axb3 {[%emt 0:00:00]} 44. axb3 {[%emt 0:00:00]} Kf5 {[%emt 0:00:00]} 45. Kd3 {[%emt 0:00:00]} Kxg5 {[%emt 0:00:00]} 46. c4 {[%emt 0:00:00]} bxc4+ {[%emt 0:00:00]} 47. bxc4 {[%emt 0:00:00]} dxc4+ {[%emt 0:00:00]} 48. Kxc4 {[%emt 0:00:00]} Kf5 {[%emt 0:00:00]} 49. d5 {[%emt 0:00:00]} Ne5+ {[%emt 0:00:00]} 50. Kb5 {[%emt 0:00:00]} g5 {[%emt 0:00:00]} 51. Kb6 {[%emt 0:00:00]} g4 {[%emt 0:00:00]} 52. Kc7 {[%emt 0:00:00]} f3 {[%emt 0:00:00]} 53. d6 {[%emt 0:00:00]} Nf7 {[%emt 0:00:00]} 54. Bg3 {[%emt 0:00:00]} Ke4 {[%emt 0:00:00]} 55. d7 {[%emt 0:00:00]} Ke3 {[%emt 0:00:00]} 56. d8=Q {[%emt 0:00:00]} Nxd8 {[%emt 0:00:00]} 57. Kxd8 {[%emt 0:00:00]} f2 {[%emt 0:00:00]} 58. Bc7 {[%emt 0:00:00]} f1=Q {[%emt 0:00:00]} 59. Kd7 {[%emt 0:00:00]} Qf7+ {[%emt 0:00:00]} 60. Kc6 {[%emt 0:00:00]} Qxc7+ {[%emt 0:00:00]} 61. Kxc7 {[%emt 0:00:00]} g3 {[%emt 0:00:00]} 62. Kd6 {[%emt 0:00:00]} g2 {[%emt 0:00:00]} 63. Ke5 {[%emt 0:00:00]} g1=Q {[%emt 0:00:00]} 64. Kf5 {[%emt 0:00:00]} Qh2 {[%emt 0:00:00]} 65. Kg5 {[%emt 0:00:00]} Qf4+ {[%emt 0:00:00]} 66. Kh5 {[%emt 0:00:00]} Qg3 {[%emt 0:00:00]} 67. Kh6 {[%emt 0:00:00]} Qg4 {[%emt 0:00:00]} 68. Kh7 {[%emt 0:00:00]} Qg5 {[%emt 0:00:00]} 69. Kh8 Ke4 0-1

[Event "GER-ch Youth U12 2020"]
[Site "Willingen"]
[Date "2020.10.27"]
[Round "1.12"]
[White "Uhlmann, Tim"]
[Black "Göpfert, Gregor"]
[Result "1-0"]
[ECO "C50"]
[WhiteElo "1523"]
[BlackElo "1603"]
[Annotator "NA"]
[PlyCount "79"]
[EventDate "2020.10.27"]
[EventType "swiss"]
[EventRounds "7"]
[EventCountry "GER"]
[SourceTitle "playchess.com"]
[Source "ChessBase"]
[SourceQuality "1"]
[TimeControl "40/5400+30:1800+30"]

1. e4 e5 2. Nf3 Nc6 3. d4 exd4 4. Bc4 Be7 5. c3 dxc3 6. Qd5 Nh6 7. Bxh6 O-O 8. Bxg7 Kxg7 9. Nxc3 d6 10. O-O Be6 11. Qd3 Bf6 12. Bxe6 fxe6 13. Rac1 Qe7 14. b3 Kh8 15. Ne2 Qg7 16. Ng3 Rg8 17. Kh1 a6 18. Rg1 Qf7 19. Ne2 Raf8 20. Rcf1 Rg7 21. Nfd4 Nxd4 22. Nxd4 Bxd4 23. Qxd4 e5 24. Qe3 c6 25. f3 Re8 26. f4 exf4 27. Rxf4 Qg6 28. g3 Rge7 29. Qd4+ Kg8 30. Re1 Re5 31. h3 h6 32. Kg2 Qe6 33. Qf2 d5 34. Rf6 Qe7 35. Qf4 Rxe4 36. Rg6+ Kh8 37. Qxh6+ Qh7 38. Qg5 Rxe1 39. Qf6+ Qg7 40. Qxg7# 1-0

[Event "GER-ch Youth U12 2020"]
[Site "Willingen"]
[Date "2020.10.27"]
[Round "1.13"]
[White "Vecera, Fabio"]
[Black "Udelnov, Valentin"]
[Result "0-1"]
[ECO "C56"]
[WhiteElo "1534"]
[BlackElo "1691"]
[Annotator "NA RC"]
[PlyCount "34"]
[EventDate "2020.10.27"]
[EventType "swiss"]
[EventRounds "7"]
[EventCountry "GER"]
[SourceTitle "playchess.com"]
[Source "ChessBase"]
[SourceQuality "1"]
[TimeControl "40/5400+30:1800+30"]

1. e4 {[%emt 0:00:00]} e5 {[%emt 0:00:00]} 2. Nf3 {[%emt 0:00:00]} Nc6 {[%emt 0:00:00]} 3. d4 {[%emt 0:00:00]} exd4 {[%emt 0:00:00]} 4. Bc4 {[%emt 0:00:00]} Nf6 {[%emt 0:00:09]} 5. O-O {[%emt 0:00:11]} Nxe4 {[%emt 0:00:58]} 6. Re1 {[%emt 0:00:28]} d5 {[%emt 0:00:04]} 7. Bxd5 {[%emt 0:00:05]} Qxd5 {[%emt 0:00:46]} 8. Nc3 {[%emt 0:00:11]} Qh5 {[%emt 0:00:29]} 9. Nxe4 {[%emt 0:00:09]} Be6 {[%emt 0:00:08]} 10. Bg5 {[%emt 0:00:13]} Bd6 {[%emt 0:00:47]} 11. Nxd4 {[%emt 0:08:20]} Qxh2+ {[%emt 0:02:56]} 12. Kf1 {[%emt 0:00:24]} Bc4+ {[%emt 0:00:33]} 13. Qd3 {[%emt 0:06:53]} Bxd3+ {[%emt 0:00:43]} 14. cxd3 {[%emt 0:00:07]} O-O {[%emt 0:02:02]} 15. Nf5 {[%emt 0:07:05]} f6 {[%emt 0:07:33]} 16. Bd2 {[%emt 0:01:43]} Qh1+ {[%emt 0:00:09]} 17. Ke2 {[%emt 0:00:11]} Qh5+ 0-1

[Event "GER-ch Youth U12 2020"]
[Site "Willingen"]
[Date "2020.10.27"]
[Round "1.14"]
[White "Sommer, Justus"]
[Black "Werner, Florin"]
[Result "1-0"]
[ECO "C13"]
[WhiteElo "1845"]
[BlackElo "1481"]
[Annotator "NA RC"]
[PlyCount "71"]
[EventDate "2020.10.27"]
[EventType "swiss"]
[EventRounds "7"]
[EventCountry "GER"]
[SourceTitle "playchess.com"]
[Source "ChessBase"]
[SourceQuality "1"]
[TimeControl "40/5400+30:1800+30"]

1. e4 {[%emt 0:00:10]} e6 {[%emt 0:00:00]} 2. d4 {[%emt 0:00:11]} d5 {[%emt 0:00:06]} 3. Nc3 {[%emt 0:00:16]} Nf6 {[%emt 0:00:19]} 4. Bg5 {[%emt 0:00:25]} Be7 {[%emt 0:00:14]} 5. exd5 {[%emt 0:00:16]} exd5 {[%emt 0:00:13]} 6. Bd3 {[%emt 0:00:35]} c6 {[%emt 0:01:00]} 7. Nf3 {[%emt 0:00:42] C01: French: Exchange Variation.} h6 {[%emt 0:04:30]} 8. Bh4 {[%emt 0:01:26]} Bg4 {[%emt 0:03:53]} 9. O-O {[%emt 0:01:08]} O-O {[%emt 0:00:45] [#]} 10. Re1 $146 {[%emt 0:01:47]} ({Predecessor:} 10. h3 Bxf3 11. Qxf3 Nbd7 12. Rfe1 Re8 13. Re2 Bb4 14. Rae1 Rxe2 15. Rxe2 Qc7 16. Qf5 Bxc3 17. bxc3 {0-1 (65) Goebel,M (1131)-Lauer,F (918) LSS email 2011}) 10... Bd6 {[%emt 0:00:55]} 11. Nb1 {[%emt 0:03:08]} Nbd7 {[%emt 0:01:05]} 12. Nbd2 {[%emt 0:02:26]} Qc7 {[%emt 0:00:28]} 13. Nf1 {[%emt 0:01:08]} Rfe8 {[%emt 0:02:10]} 14. Rxe8+ {[%emt 0:01:17]} Rxe8 {[%emt 0:00:09]} 15. Bg3 {[%emt 0:00:36]} Ne4 {[%emt 0:02:38]} 16. Bxd6 {[%emt 0:01:20]} Qxd6 {[%emt 0:00:19]} 17. Ne3 {[%emt 0:00:44]} Ndf6 {[%emt 0:08:21]} 18. h3 {[%emt 0:03:50]} Bh5 {[%emt 0:05:27]} (18... Bxf3 $142 19. Qxf3 Qb4 {[%mdl 64] Double Attack}) 19. g4 {[%emt 0:02:54]} Bg6 {[%emt 0:02:20]} 20. Ne5 {[%emt 0:01:54]} ({Better is} 20. Ng2) 20... c5 {[%emt 0:08:42]} 21. Nxg6 {[%emt 0:05:09]} fxg6 {[%emt 0:01:05]} 22. Bxe4 {[%emt 0:01:27]} Rxe4 {[%emt 0:03:20]} 23. dxc5 {[%emt 0:02:58]} Qxc5 {[%emt 0:00:11]} 24. Qd3 $11 {[%emt 0:01:48]} Rd4 {[%emt 0:03:03]} 25. Qxg6 {[%emt 0:02:43]} Rd2 {[%emt 0:00:45]} 26. Rf1 Ne4 {[%emt 0:03:59]} 27. Nf5 {[%emt 0:03:27]} Qf8 {[%emt 0:00:18]} 28. Nxh6+ {[%emt 0:06:23]} Kh8 {[%emt 0:00:00]} 29. Nf7+ {[%emt 0:00:43]} Kg8 {[%emt 0:04:59]} 30. Ng5 {[%emt 0:02:32]} Qf6 {[%emt 0:00:14]} 31. Qe8+ {[%emt 0:00:11]} Qf8 {[%emt 0:00:10]} 32. Qe6+ {[%emt 0:00:41]} Kh8 {[%emt 0:01:16]} 33. Nxe4 {[%emt 0:00:23]} dxe4 {[%emt 0:01:15]} 34. Qxe4 {[%emt 0:03:11]} Qf6 {[%emt 0:01:32]} 35. Qxb7 {[%emt 0:00:54]} Rxc2 {[%emt 0:00:52]} 36. Qe4 {[%emt 0:00:00]} 1-0

[Event "GER-ch Youth U12 2020"]
[Site "Willingen"]
[Date "2020.10.27"]
[Round "1.16"]
[White "Klaska, Philipp Leon"]
[Black "Leubner, Paul Damdin"]
[Result "1-0"]
[ECO "B90"]
[WhiteElo "1716"]
[BlackElo "1409"]
[Annotator "NA RC"]
[PlyCount "71"]
[EventDate "2020.10.27"]
[EventType "swiss"]
[EventRounds "7"]
[EventCountry "GER"]
[SourceTitle "playchess.com"]
[Source "ChessBase"]
[SourceQuality "1"]
[TimeControl "40/5400+30:1800+30"]

1. e4 {[%emt 0:00:00]} c5 {[%emt 0:00:00]} 2. Nf3 {[%emt 0:00:00]} d6 {[%emt 0:00:00]} 3. d4 {[%emt 0:00:00]} cxd4 {[%emt 0:00:00]} 4. Nxd4 {[%emt 0:00:00]} Nf6 {[%emt 0:00:08]} 5. Nc3 {[%emt 0:00:33]} a6 6. Be3 {[%emt 0:01:02]} e5 {[%emt 0:00:34]} 7. Nb3 {[%emt 0:00:29]} Be6 {[%emt 0:00:46]} 8. Qd2 {[%emt 0:02:49]} Be7 {[%emt 0:02:26]} 9. Rd1 {[%emt 0:01:02]} Ng4 {[%emt 0:02:29]} 10. Be2 {[%emt 0:02:10]} Nxe3 {[%emt 0:01:37]} 11. Qxe3 {[%emt 0:00:56]} Nd7 {[%emt 0:02:31]} 12. O-O {[%emt 0:02:23]} O-O {[%emt 0:03:28]} 13. Nd5 {[%emt 0:10:55]} Rc8 {[%emt 0:07:35]} 14. c4 {[%emt 0:06:35]} f5 {[%emt 0:05:49]} 15. f3 {[%emt 0:14:43]} Qe8 {[%emt 0:11:04]} 16. Na5 {[%emt 0:16:21]} Bxd5 {[%emt 0:08:05]} 17. cxd5 {[%emt 0:07:44]} Bd8 {[%emt 0:02:07]} 18. Qa3 {[%emt 0:02:18]} Bxa5 {[%emt 0:12:02]} 19. Qxa5 {[%emt 0:02:03]} Qg6 {[%emt 0:02:20]} 20. Bd3 {[%emt 0:06:15]} f4 {[%emt 0:02:43]} 21. Rc1 {[%emt 0:02:37]} Rc5 {[%emt 0:11:18]} 22. Qa4 {[%emt 0:02:04]} Qf7 {[%emt 0:03:40]} 23. b4 {[%emt 0:01:46]} Nb6 {[%emt 0:02:39]} 24. Qa3 {[%emt 0:02:08]} Rcc8 {[%emt 0:01:40]} 25. Qa5 {[%emt 0:01:17]} Rxc1 {[%emt 0:02:58]} 26. Rxc1 {[%emt 0:01:41]} Rc8 {[%emt 0:00:24]} 27. Rxc8+ {[%emt 0:01:06]} Nxc8 {[%emt 0:00:32]} 28. Qd8+ {[%emt 0:00:49]} Qf8 {[%emt 0:00:32]} 29. Qd7 {[%emt 0:01:55]} b5 {[%emt 0:02:27]} 30. Qb7 {[%emt 0:02:02]} Qd8 {[%emt 0:00:48]} 31. Qxa6 {[%emt 0:01:42]} Qb6+ {[%emt 0:00:32]} 32. Qxb6 {[%emt 0:00:17]} Nxb6 {[%emt 0:00:09]} 33. Bxb5 {[%emt 0:00:33]} Kf8 {[%emt 0:00:37]} 34. a4 {[%emt 0:00:19]} Ke7 {[%emt 0:01:02]} 35. a5 {[%emt 0:00:30]} Nc8 36. Ba6 {[%emt 0:00:32]} 1-0

[Event "GER-ch Youth U12 2020"]
[Site "Willingen"]
[Date "2020.10.27"]
[Round "1.17"]
[White "Mader, Fabian"]
[Black "Zobel, Christian"]
[Result "0-1"]
[ECO "C50"]
[WhiteElo "1588"]
[BlackElo "1521"]
[Annotator "NA"]
[PlyCount "119"]
[EventDate "2020.10.27"]
[EventType "swiss"]
[EventRounds "7"]
[EventCountry "GER"]
[SourceTitle "playchess.com"]
[Source "ChessBase"]
[SourceQuality "1"]
[TimeControl "40/5400+30:1800+30"]

1. e4 {[%emt 0:00:00]} e5 {[%emt 0:00:00]} 2. Bc4 {[%emt 0:00:00]} Nf6 {[%emt 0:00:00]} 3. d3 {[%emt 0:00:00]} Nc6 {[%emt 0:00:38]} 4. Nf3 {[%emt 0:00:00]} Bc5 {[%emt 0:00:36]} 5. c3 {[%emt 0:00:03]} d6 {[%emt 0:00:51]} 6. Bb3 {[%emt 0:00:07]} h6 {[%emt 0:01:18]} 7. Nbd2 {[%emt 0:00:56]} O-O {[%emt 0:01:00]} 8. h3 {[%emt 0:00:20]} Be6 {[%emt 0:00:43]} 9. Bc2 {[%emt 0:00:23]} Nh5 {[%emt 0:04:05]} 10. Nxe5 {[%emt 0:04:30]} Bxf2+ {[%emt 0:00:30]} 11. Kxf2 {[%emt 0:06:31]} Qh4+ {[%emt 0:00:21]} 12. Kg1 {[%emt 0:00:33]} Nxe5 {[%emt 0:03:23]} 13. d4 {[%emt 0:03:44]} Ng6 {[%emt 0:01:42]} 14. Nf3 {[%emt 0:04:45]} Qe7 {[%emt 0:03:12]} 15. Kh2 {[%emt 0:06:48]} Nf6 {[%emt 0:07:27]} 16. Rf1 {[%emt 0:04:18]} Rfe8 {[%emt 0:09:18]} 17. Qd3 {[%emt 0:07:45]} Bd7 {[%emt 0:09:07]} 18. Re1 {[%emt 0:06:21]} Bc6 {[%emt 0:03:20]} 19. d5 {[%emt 0:03:29]} Ne5 {[%emt 0:01:44]} 20. Nxe5 {[%emt 0:06:35]} Qxe5+ {[%emt 0:00:48]} 21. Kg1 {[%emt 0:00:14]} Bxd5 {[%emt 0:04:19]} 22. Bf4 {[%emt 0:17:23]} Qxf4 {[%emt 0:07:35]} 23. exd5 {[%emt 0:01:59]} Qg5 {[%emt 0:05:26]} 24. c4 {[%emt 0:03:27]} Re5 {[%emt 0:03:30]} 25. Qd4 {[%emt 0:06:34]} Rae8 {[%emt 0:02:46]} 26. Qf2 {[%emt 0:05:22]} Nh5 {[%emt 0:03:53]} 27. Rxe5 {[%emt 0:02:50]} Qxe5 {[%emt 0:03:59]} 28. Rf1 {[%emt 0:01:01]} Nf6 {[%emt 0:03:55]} 29. Qxa7 {[%emt 0:03:15]} Qxb2 {[%emt 0:01:17]} 30. Bb3 {[%emt 0:01:25]} Re2 {[%emt 0:05:31]} 31. Rf2 {[%emt 0:01:45]} Rxf2 {[%emt 0:01:39]} 32. Qxf2 {[%emt 0:00:09]} Qxf2+ {[%emt 0:00:06]} 33. Kxf2 {[%emt 0:00:05]} g5 {[%emt 0:02:43]} 34. Ke3 {[%emt 0:01:08]} Nh5 {[%emt 0:00:22]} 35. Bd1 {[%emt 0:02:16]} Nf4 {[%emt 0:01:16]} 36. g3 {[%emt 0:01:12]} Ng6 {[%emt 0:00:58]} 37. Bh5 {[%emt 0:00:17]} Kg7 {[%emt 0:00:34]} 38. Bg4 {[%emt 0:00:45]} Ne5 {[%emt 0:00:25]} 39. Be2 {[%emt 0:00:10]} Kg6 {[%emt 0:00:13]} 40. g4 {[%emt 0:00:38]} f5 {[%emt 0:01:27]} 41. Kd4 {[%emt 0:04:20]} fxg4 {[%emt 0:00:50]} 42. hxg4 {[%emt 0:00:17]} h5 {[%emt 0:00:52]} 43. gxh5+ {[%emt 0:01:08]} Kh6 {[%emt 0:00:09]} 44. Ke4 {[%emt 0:01:16]} g4 {[%emt 0:00:10]} 45. Kf4 {[%emt 0:01:08]} Kxh5 {[%emt 0:00:06]} 46. Kg3 {[%emt 0:00:27]} Kg5 {[%emt 0:00:16]} 47. Bf1 {[%emt 0:00:30]} Kf5 {[%emt 0:00:28]} 48. a4 {[%emt 0:01:34]} Ke4 {[%emt 0:00:22]} 49. Be2 {[%emt 0:00:43]} Kd4 {[%emt 0:00:10]} 50. Bf1 {[%emt 0:00:24]} Nxc4 {[%emt 0:00:04]} 51. Be2 {[%emt 0:01:59]} Ne3 {[%emt 0:00:26]} 52. Kf4 {[%emt 0:00:56]} Nxd5+ {[%emt 0:00:15]} 53. Kxg4 {[%emt 0:00:06]} Nc3 {[%emt 0:00:14]} 54. Bf3 {[%emt 0:00:11]} Nxa4 {[%emt 0:00:22]} 55. Bxb7 {[%emt 0:00:07]} c5 {[%emt 0:00:04]} 56. Kf3 {[%emt 0:00:29]} Kd3 {[%emt 0:00:07]} 57. Be4+ {[%emt 0:00:14]} Kd2 {[%emt 0:00:10]} 58. Bd5 {[%emt 0:00:15]} Nb6 {[%emt 0:00:09]} 59. Ke4 {[%emt 0:01:35]} Nxd5 {[%emt 0:00:20]} 60. Kxd5 {[%emt 0:00:08]} 0-1

[Event "GER-ch Youth U12 2020"]
[Site "Willingen"]
[Date "2020.10.27"]
[Round "1.18"]
[White "Braeutigam, Alexander"]
[Black "Schneble, Milan"]
[Result "1-0"]
[ECO "D35"]
[WhiteElo "1631"]
[BlackElo "1418"]
[Annotator "NA RC"]
[PlyCount "111"]
[EventDate "2020.10.27"]
[EventType "swiss"]
[EventRounds "7"]
[EventCountry "GER"]
[SourceTitle "playchess.com"]
[Source "ChessBase"]
[SourceQuality "1"]
[TimeControl "40/5400+30:1800+30"]

1. d4 {[%emt 0:00:00]} d5 {[%emt 0:00:00]} 2. c4 {[%emt 0:00:00]} Nf6 {[%emt 0:00:25]} 3. Nc3 {[%emt 0:00:27]} e6 {[%emt 0:00:38]} 4. f3 {[%emt 0:00:54]} Nc6 {[%emt 0:04:55]} 5. Nh3 {[%emt 0:02:58]} h6 {[%emt 0:07:50]} 6. Nf2 {[%emt 0:01:37]} dxc4 {[%emt 0:05:34]} 7. e3 {[%emt 0:01:13]} Bb4 {[%emt 0:02:33]} 8. a3 {[%emt 0:00:08]} Ba5 {[%emt 0:00:10]} 9. Bxc4 {[%emt 0:00:45]} e5 {[%emt 0:05:30]} 10. d5 {[%emt 0:01:10]} Ne7 {[%emt 0:02:10]} 11. e4 {[%emt 0:02:31]} Bb6 {[%emt 0:06:09]} 12. Qe2 {[%emt 0:01:40]} Ng6 {[%emt 0:03:56]} 13. Be3 {[%emt 0:01:36]} Bxe3 {[%emt 0:09:43]} 14. Qxe3 {[%emt 0:00:39]} Qe7 {[%emt 0:07:14]} 15. O-O {[%emt 0:02:59]} O-O {[%emt 0:01:10]} 16. Rfd1 {[%emt 0:01:23]} Ne8 {[%emt 0:08:22]} 17. Rac1 {[%emt 0:02:14]} Nf4 {[%emt 0:01:52]} 18. Nd3 {[%emt 0:01:27]} Nd6 {[%emt 0:01:24]} 19. Ba2 {[%emt 0:01:53]} Nxd3 {[%emt 0:03:08]} 20. Qxd3 {[%emt 0:00:47]} f5 {[%emt 0:02:51]} 21. Nb5 {[%emt 0:00:38]} fxe4 {[%emt 0:00:41]} 22. fxe4 {[%emt 0:00:35]} Bg4 {[%emt 0:03:36]} 23. Rxc7 {[%emt 0:02:26]} Qd8 {[%emt 0:01:12]} 24. Rdc1 {[%emt 0:00:35]} Nxb5 {[%emt 0:02:38]} 25. Qxb5 {[%emt 0:00:36]} a6 {[%emt 0:02:38]} 26. Qxb7 {[%emt 0:00:52]} Qf6 {[%emt 0:00:29]} 27. R7c2 {[%emt 0:01:20]} Rab8 {[%emt 0:03:26]} 28. Qc6 {[%emt 0:00:39]} Qf4 {[%emt 0:01:04]} 29. h3 {[%emt 0:03:02]} Qe3+ {[%emt 0:01:32]} 30. Kh2 {[%emt 0:01:01]} Bxh3 {[%emt 0:04:15]} 31. Qc3 {[%emt 0:01:34]} Qxc3 {[%emt 0:03:35]} 32. Rxc3 {[%emt 0:00:26]} Rxb2 {[%emt 0:00:51]} 33. Kxh3 {[%emt 0:00:35]} Rxa2 {[%emt 0:00:08]} 34. Rd1 {[%emt 0:00:35]} Re2 {[%emt 0:01:19]} 35. d6 {[%emt 0:00:34]} Rd8 {[%emt 0:01:38]} 36. d7 {[%emt 0:00:20]} Kf7 {[%emt 0:00:20]} 37. Rc4 {[%emt 0:02:39]} Re3+ {[%emt 0:00:24]} 38. Kg4 {[%emt 0:00:11]} Ke7 {[%emt 0:00:42]} 39. Kf5 {[%emt 0:01:18]} Rxd7 {[%emt 0:00:49]} 40. Rxd7+ {[%emt 0:00:12]} Kxd7 {[%emt 0:00:06]} 41. Ra4 {[%emt 0:30:13]} Rg3 {[%emt 0:30:40]} 42. Kxe5 {[%emt 0:00:44]} a5 {[%emt 0:00:41]} 43. Kf4 {[%emt 0:00:43]} Rg5 {[%emt 0:01:19]} 44. g4 {[%emt 0:00:16]} Rb5 {[%emt 0:00:21]} 45. Rd4+ {[%emt 0:01:31]} Ke6 {[%emt 0:00:44]} 46. a4 {[%emt 0:01:04]} Rb3 {[%emt 0:00:15]} 47. e5 {[%emt 0:00:37]} Rb4 {[%emt 0:00:00]} 48. Rxb4 {[%emt 0:00:00]} axb4 {[%emt 0:00:00]} 49. a5 {[%emt 0:00:00]} g5+ {[%emt 0:00:00]} 50. Ke4 {[%emt 0:00:00]} b3 {[%emt 0:00:00]} 51. Kd3 {[%emt 0:00:00]} Kxe5 {[%emt 0:00:00]} 52. a6 {[%emt 0:00:00]} b2 {[%emt 0:00:00]} 53. Kc2 {[%emt 0:00:00]} Kf4 {[%emt 0:00:00]} 54. a7 {[%emt 0:00:00]} Kxg4 {[%emt 0:00:00]} 55. a8=Q {[%emt 0:00:00]} h5 {[%emt 0:00:00]} 56. Kxb2 {[%emt 0:00:00]} 1-0

[Event "GER-ch Youth U12 2020"]
[Site "Willingen"]
[Date "2020.10.27"]
[Round "1.19"]
[White "Guo, Jacob Tingshen"]
[Black "Winkler, Yonathan"]
[Result "1/2-1/2"]
[ECO "D15"]
[WhiteElo "1551"]
[BlackElo "1680"]
[Annotator "NA RC"]
[PlyCount "49"]
[EventDate "2020.10.27"]
[EventType "swiss"]
[EventRounds "7"]
[EventCountry "GER"]
[SourceTitle "playchess.com"]
[Source "ChessBase"]
[SourceQuality "1"]
[TimeControl "40/5400+30:1800+30"]

1. d4 {[%emt 0:00:00]} d5 {[%emt 0:00:00]} 2. c4 {[%emt 0:00:00]} c6 {[%emt 0:00:00]} 3. Nf3 {[%emt 0:00:00]} Nf6 {[%emt 0:00:21]} 4. Nc3 {[%emt 0:00:08]} dxc4 {[%emt 0:00:05]} 5. e3 {[%emt 0:00:22]} b5 {[%emt 0:00:05]} 6. a4 {[%emt 0:00:18]} Nd5 {[%emt 0:00:09]} 7. Ne5 {[%emt 0:01:39]} Nxc3 {[%emt 0:04:14]} 8. bxc3 {[%emt 0:00:17]} Qd6 {[%emt 0:00:28]} 9. Qf3 {[%emt 0:05:27]} Qf6 {[%emt 0:01:34]} 10. Be2 {[%emt 0:02:17]} Ba6 {[%emt 0:15:12]} 11. Qg4 {[%emt 0:12:16]} h5 {[%emt 0:12:39]} 12. Qh3 {[%emt 0:06:55]} e6 {[%emt 0:12:29]} 13. Bf3 {[%emt 0:06:54]} b4 {[%emt 0:11:09]} 14. Nxc6 {[%emt 0:07:54]} Bb7 {[%emt 0:00:39]} 15. Nxb4 {[%emt 0:04:59]} Bxf3 {[%emt 0:01:33]} 16. Qxf3 {[%emt 0:01:02]} Qxf3 {[%emt 0:00:07]} 17. gxf3 {[%emt 0:00:08]} a5 {[%emt 0:01:11]} 18. Nc2 {[%emt 0:00:36]} Nd7 {[%emt 0:00:40]} 19. Ba3 {[%emt 0:01:31]} Bxa3 {[%emt 0:01:46]} 20. Nxa3 {[%emt 0:00:42]} Nb6 {[%emt 0:00:14]} 21. Kd2 {[%emt 0:00:46]} Kd7 {[%emt 0:01:58]} 22. Rhg1 {[%emt 0:07:03]} g6 {[%emt 0:00:13]} 23. Rg5 {[%emt 0:00:18]} Rhc8 {[%emt 0:00:29]} 24. Nb5 {[%emt 0:02:07]} Rab8 {[%emt 0:06:12]} 25. e4 {[%emt 0:04:32]} 1/2-1/2

[Event "GER-ch Youth U12 2020"]
[Site "Willingen"]
[Date "2020.10.27"]
[Round "1.20"]
[White "Korek, Jakob Alexander"]
[Black "Ehrlich, Patrick"]
[Result "0-1"]
[ECO "A41"]
[WhiteElo "1592"]
[BlackElo "1448"]
[Annotator "NA RC"]
[PlyCount "69"]
[EventDate "2020.10.27"]
[EventType "swiss"]
[EventRounds "7"]
[EventCountry "GER"]
[SourceTitle "playchess.com"]
[Source "ChessBase"]
[SourceQuality "1"]
[TimeControl "40/5400+30:1800+30"]

1. d4 {[%emt 0:00:00]} d6 {[%emt 0:00:00]} 2. Nf3 {[%emt 0:00:11]} Nf6 {[%emt 0:00:27]} 3. c4 {[%emt 0:01:36]} g6 {[%emt 0:00:14]} 4. Nc3 {[%emt 0:00:52]} Bg7 {[%emt 0:00:11]} 5. e4 {[%emt 0:00:51]} Bg4 {[%emt 0:06:13]} 6. Be2 {[%emt 0:01:00]} c5 {[%emt 0:04:02]} 7. Be3 {[%emt 0:02:39]} Qa5 {[%emt 0:07:02]} 8. O-O Nc6 {[%emt 0:07:55]} 9. d5 {[%emt 0:19:14]} Bxf3 {[%emt 0:02:22]} 10. Bxf3 {[%emt 0:04:13]} Ne5 {[%emt 0:00:11]} 11. Be2 {[%emt 0:01:11]} Qb4 {[%emt 0:02:32]} 12. Qb3 {[%emt 0:08:11]} Qxb3 {[%emt 0:06:37]} 13. axb3 {[%emt 0:00:17]} O-O {[%emt 0:00:43]} 14. f4 {[%emt 0:02:52]} Neg4 {[%emt 0:05:43]} 15. Bd2 {[%emt 0:04:19]} h5 {[%emt 0:03:41]} 16. h3 {[%emt 0:04:15]} Nh6 {[%emt 0:01:36]} 17. Bd3 {[%emt 0:02:59]} e6 {[%emt 0:09:28]} 18. dxe6 {[%emt 0:04:17]} fxe6 {[%emt 0:01:00]} 19. Nb5 {[%emt 0:00:55]} Ne8 {[%emt 0:05:07]} 20. Bc3 {[%emt 0:01:27]} e5 {[%emt 0:09:41]} 21. fxe5 {[%emt 0:02:34]} Rxf1+ {[%emt 0:01:29]} 22. Kxf1 {[%emt 0:00:44]} dxe5 {[%emt 0:01:00]} 23. Rxa7 {[%emt 0:00:44]} Rd8 {[%emt 0:01:07]} 24. Bc2 {[%emt 0:00:47]} Rb8 {[%emt 0:01:43]} 25. Ba5 {[%emt 0:03:33]} Nf7 {[%emt 0:02:54]} 26. Nc7 {[%emt 0:02:51]} Nxc7 {[%emt 0:00:16]} 27. Bxc7 {[%emt 0:00:27]} Rf8 {[%emt 0:00:32]} 28. Ke2 {[%emt 0:01:28]} Rc8 {[%emt 0:01:52]} 29. Rxb7 {[%emt 0:01:27]} Kh7 {[%emt 0:01:16]} 30. Ra7 {[%emt 0:01:27]} Re8 {[%emt 0:02:49]} 31. Bb6 {[%emt 0:01:17]} Nd8 {[%emt 0:02:59]} 32. Ra8 {[%emt 0:01:02]} Bf6 {[%emt 0:00:56]} 33. Bxc5 {[%emt 0:00:45]} Re6 {[%emt 0:00:54]} 34. Ra7+ {[%emt 0:01:05]} Bg7 {[%emt 0:00:46]} 35. Bf8 {[%emt 0:01:27]} 0-1